[Event "Bicaz City Cup 2020"]
[Site "Bicaz"]
[Date "2020.03.08"]
[Round "6.12"]
[White "Stegariu, Alexandru"]
[Black "Mazilu, Stefan-Fabian"]
[Result "1/2-1/2"]
[ECO "E15"]
[WhiteElo "2129"]
[BlackElo "1772"]
[Annotator "ChessBase"]
[PlyCount "70"]
[EventDate "2020.03.05"]
[EventType "swiss"]
[EventCountry "ROU"]
[SourceTitle "playchess.com"]
[Source "ChessBase"]
[SourceQuality "1"]
[TimeControl "5400+30"]

1. d4 {[%emt 0:00:00]} Nf6 {[%emt 0:00:00]} 2. c4 {[%emt 0:00:00]} e6 {[%emt 0:00:00]} 3. Nf3 {[%emt 0:00:00]} b6 {[%emt 0:00:00]} 4. g3 {[%emt 0:00:00]} Bb7 {[%emt 0:00:00]} 5. Bg2 {[%emt 0:00:00]} c5 {[%emt 0:01:18]} 6. dxc5 {[%emt 0:02:16]} Bxc5 {[%emt 0:00:08]} 7. O-O {[%emt 0:00:07]} O-O {[%emt 0:00:45]} 8. Nc3 {[%emt 0:00:59]} d5 {[%emt 0:09:04]} 9. Ne5 {[%emt 0:07:23]} Nbd7 {[%emt 0:12:30]} 10. Nxd7 {[%emt 0:01:57]} Qxd7 {[%emt 0:00:40]} 11. cxd5 {[%emt 0:00:06]} Nxd5 {[%emt 0:03:12]} 12. Nxd5 {[%emt 0:01:11]} exd5 {[%emt 0:01:47]} 13. Bd2 {[%emt 0:10:00]} a5 {[%emt 0:06:00]} 14. Bc3 {[%emt 0:08:21]} Rad8 {[%emt 0:05:52]} 15. Bd4 {[%emt 0:00:28]} Rfe8 {[%emt 0:10:52]} 16. e3 {[%emt 0:03:11]} Ba6 {[%emt 0:02:03]} 17. Re1 {[%emt 0:05:24]} Bb4 {[%emt 0:05:59]} 18. Bc3 {[%emt 0:00:55]} Bxc3 {[%emt 0:01:01]} 19. bxc3 {[%emt 0:00:03]} Qc6 {[%emt 0:01:12]} 20. Qd4 {[%emt 0:00:26]} Bc4 {[%emt 0:01:45]} 21. Red1 {[%emt 0:00:22]} Qc7 {[%emt 0:00:16]} 22. Rd2 {[%emt 0:00:37]} b5 {[%emt 0:01:21]} 23. Rad1 {[%emt 0:00:52]} f5 {[%emt 0:01:04]} 24. f3 {[%emt 0:03:02]} h6 {[%emt 0:01:35]} 25. e4 {[%emt 0:02:01]} dxe4 {[%emt 0:01:37]} 26. Qxd8 {[%emt 0:00:04]} Rxd8 {[%emt 0:00:08]} 27. Rxd8+ {[%emt 0:00:04]} Kh7 {[%emt 0:00:04]} 28. fxe4 {[%emt 0:00:06]} Be6 {[%emt 0:05:25]} 29. exf5 {[%emt 0:04:32]} Bxf5 {[%emt 0:06:04]} 30. R1d5 {[%emt 0:10:25]} Bc2 {[%emt 0:03:17]} 31. Rf8 {[%emt 0:03:12]} Qxc3 {[%emt 0:01:23]} 32. Rxb5 {[%emt 0:02:26]} Qe3+ {[%emt 0:02:39]} 33. Rf2 {[%emt 0:00:38]} Bd3 {[%emt 0:00:34]} 34. Rb8 {[%emt 0:05:22]} Qe1+ {[%emt 0:00:42]} 35. Bf1 {[%emt 0:00:07]} Bxf1 {[%emt 0:00:19]} 1/2-1/2

[Event "Bicaz City Cup 2020"]
[Site "Bicaz"]
[Date "2020.03.08"]
[Round "6.14"]
[White "Mintau, Andrei-Catalin"]
[Black "Morariu, Daniel"]
[Result "1/2-1/2"]
[ECO "B43"]
[WhiteElo "1984"]
[BlackElo "1744"]
[Annotator "ChessBase"]
[PlyCount "88"]
[EventDate "2020.03.05"]
[EventType "swiss"]
[EventCountry "ROU"]
[SourceTitle "playchess.com"]
[Source "ChessBase"]
[SourceQuality "1"]
[TimeControl "5400+30"]

1. e4 {[%emt 0:02:20]} c5 {[%emt 0:00:00]} 2. Nf3 {[%emt 0:00:04]} e6 {[%emt 0:00:00]} 3. d4 {[%emt 0:00:05]} cxd4 {[%emt 0:00:00]} 4. Nxd4 {[%emt 0:00:05]} a6 {[%emt 0:00:00]} 5. Nc3 {[%emt 0:00:12]} Qc7 {[%emt 0:00:03]} 6. g3 {[%emt 0:00:08]} Nf6 {[%emt 0:00:47]} 7. Bg2 {[%emt 0:00:07]} d6 {[%emt 0:00:33]} 8. O-O {[%emt 0:00:13]} Be7 {[%emt 0:00:08]} 9. a4 {[%emt 0:00:32]} Nc6 {[%emt 0:05:45]} 10. Kh1 {[%emt 0:01:55]} O-O {[%emt 0:02:14]} 11. f4 {[%emt 0:00:14]} Re8 {[%emt 0:17:50]} 12. Nb3 {[%emt 0:01:10]} Bf8 {[%emt 0:08:13]} 13. g4 {[%emt 0:00:39]} Nd7 {[%emt 0:08:14]} 14. Nd4 {[%emt 0:05:08]} Nxd4 {[%emt 0:02:02]} 15. Qxd4 {[%emt 0:00:02]} b6 {[%emt 0:08:53]} 16. f5 {[%emt 0:04:30]} Bb7 {[%emt 0:01:36]} 17. Qf2 {[%emt 0:02:12]} Rac8 {[%emt 0:07:10]} 18. g5 {[%emt 0:10:44]} exf5 {[%emt 0:00:30]} 19. exf5 {[%emt 0:00:38]} Bxg2+ {[%emt 0:04:01]} 20. Qxg2 {[%emt 0:00:03]} Qc4 {[%emt 0:11:06]} 21. Bd2 {[%emt 0:03:52]} d5 {[%emt 0:00:52]} 22. Rac1 {[%emt 0:02:13]} d4 {[%emt 0:00:31]} 23. b3 {[%emt 0:00:17]} Qc6 {[%emt 0:10:02]} 24. Nd5 {[%emt 0:02:29]} g6 {[%emt 0:04:32]} 25. f6 {[%emt 0:21:09]} Kh8 {[%emt 0:01:06]} 26. c4 {[%emt 0:02:03]} Nc5 {[%emt 0:01:20]} 27. Qf3 {[%emt 0:02:17]} a5 {[%emt 0:04:22]} 28. Bf4 {[%emt 0:02:09]} Ne6 {[%emt 0:01:07]} 29. Rce1 {[%emt 0:06:33]} Bd6 {[%emt 0:00:33]} 30. Bxd6 {[%emt 0:01:58]} Qxd6 {[%emt 0:00:02]} 31. Ne7 {[%emt 0:00:23]} Rc5 {[%emt 0:00:06]} 32. h4 {[%emt 0:00:14]} d3 {[%emt 0:01:32]} 33. Rd1 {[%emt 0:00:40]} Qd4 {[%emt 0:00:16]} 34. Qg3 {[%emt 0:01:43]} Rd8 {[%emt 0:00:37]} 35. Nd5 {[%emt 0:00:30]} Rcxd5 {[%emt 0:00:19]} 36. cxd5 {[%emt 0:00:06]} Qxd5+ {[%emt 0:00:02]} 37. Qf3 {[%emt 0:01:17]} Qxb3 {[%emt 0:00:42]} 38. Qe4 {[%emt 0:01:26]} d2 {[%emt 0:00:31]} 39. Kg2 {[%emt 0:03:05]} h5 {[%emt 0:00:57]} 40. Rb1 {[%emt 0:03:34]} Qc3 {[%emt 0:00:41]} 41. Rf3 {[%emt 0:04:34]} Qc1 {[%emt 0:00:06]} 42. Rf1 {[%emt 0:00:06]} Qc3 {[%emt 0:00:54]} 43. Rf3 {[%emt 0:00:06]} Qc1 {[%emt 0:00:24]} 44. Rf1 {[%emt 0:00:05]} Qc5 1/2-1/2

[Event "Bicaz City Cup 2020"]
[Site "Bicaz"]
[Date "2020.03.08"]
[Round "6.15"]
[White "Sachilaru, Alexandru"]
[Black "Cimpoiasu, Dan"]
[Result "0-1"]
[ECO "A13"]
[WhiteElo "1745"]
[BlackElo "1884"]
[Annotator "NA"]
[PlyCount "98"]
[EventDate "2020.03.05"]
[EventType "swiss"]
[EventCountry "ROU"]
[SourceTitle "playchess.com"]
[Source "ChessBase"]
[SourceQuality "1"]
[TimeControl "5400+30"]

{[%evp 8,96,46,50,28,19,27,18,24,24,27,22,15,17,11,-5,27,-4,0,-12,-6,-37,-18,-36,-7,-54,32767,-120,-137,-144,-138,-134,-119,-152,-139,-149,-146,-123,32767,32767,-122,-140,-126,-121,-109,-113,-100,-108,32767,-115,-112,-121,32767,32767,32767,32767,-236,32767,32767,-159,32767,-245,-83,-81,32767,-167,32767,32767,-153,-204,-28,32767,32767,32767,-203,-215,-250,32767,32767,32767,32767,32767,32767,-235,-228,32767,-452,32767,32767,32767,-717]} 1. c4 {[%emt 0:10:49]} e6 {[%emt 0:00:09]} 2. Nf3 {[%emt 0:00:57]} f5 {[%emt 0:00:24]} 3. g3 {[%emt 0:01:46]} b6 {[%emt 0:00:16]} 4. Bg2 {[%emt 0:01:17]} Bb7 {[%emt 0:00:14]} 5. d4 {[%emt 0:01:51]} Nf6 {[%emt 0:01:47]} 6. Nc3 {[%emt 0:02:33]} Be7 {[%emt 0:03:27]} 7. O-O {[%emt 0:02:55]} Ne4 {[%emt 0:05:46]} 8. Qc2 {[%emt 0:03:50] 8.Bd2 is the hot move. A84: Dutch Defence: 2 c4 Miscellaneous.} Nxc3 {[%emt 0:00:27]} 9. Qxc3 {[%emt 0:02:04]} Bf6 {[%emt 0:00:38]} 10. Bf4 {[%emt 0:02:23]} d6 {[%emt 0:01:31]} 11. Rad1 {[%emt 0:02:39]} Qe7 {[%emt 0:00:55]} 12. Qc1 {[%emt 0:02:48]} O-O {[%emt 0:01:42] [#]} 13. b4 $146 {[%emt 0:02:27]} ({Predecessor:} 13. Rfe1 Nd7 14. Bd2 Rac8 15. Bc3 Rfd8 16. d5 e5 17. e4 fxe4 18. Rxe4 c6 19. Bh3 cxd5 20. cxd5 {0-1 (55) Topel,Z (2214)-Hoang,T (2127) Beijing 2008}) 13... a5 {[%emt 0:03:56]} 14. a3 {[%emt 0:01:46]} axb4 {[%emt 0:01:35]} 15. axb4 {[%emt 0:00:14]} Ra4 {[%emt 0:00:45]} 16. Qb1 {[%emt 0:03:02]} Nc6 {[%emt 0:04:58]} 17. b5 {[%emt 0:02:56]} (17. Bd2 $15) 17... Na5 {[%emt 0:01:56]} 18. c5 {[%emt 0:02:49]} dxc5 {[%emt 0:08:24]} 19. dxc5 {[%emt 0:01:26]} Be4 {[%emt 0:01:14]} 20. Qc1 {[%emt 0:02:29]} Nb3 {[%emt 0:05:52]} ({Of course not} 20... Qxc5 $6 21. Qxc5 bxc5 22. Bxc7 $15) 21. Qe3 {[%emt 0:00:58]} Nxc5 {[%emt 0:01:14]} 22. Be5 {[%emt 0:09:21]} Rd8 {[%emt 0:16:09]} 23. Bxf6 {[%emt 0:09:00]} Qxf6 {[%emt 0:00:52]} 24. Qg5 {[%emt 0:01:42]} Rxd1 {[%emt 0:10:48]} 25. Rxd1 {[%emt 0:00:17]} Ra1 {[%emt 0:00:12]} 26. Rxa1 {[%emt 0:00:38]} Qxa1+ {[%emt 0:00:10]} 27. Bf1 {[%emt 0:00:12]} Qf6 {[%emt 0:01:47]} 28. Qf4 {[%emt 0:01:25]} Qd8 {[%emt 0:02:20]} 29. h4 {[%emt 0:02:55]} Qd6 {[%emt 0:01:24]} 30. Qg5 {[%emt 0:01:26]} Bd5 {[%emt 0:04:26]} 31. h5 {[%emt 0:01:17]} Ne4 {[%emt 0:00:34]} 32. Qh4 {[%emt 0:01:36]} e5 {[%emt 0:05:47]} 33. Bh3 {[%emt 0:02:11]} Nc3 {[%emt 0:04:11]} 34. Bf1 {[%emt 0:03:20]} (34. Kf1 $17) 34... Nxb5 {[%emt 0:01:56]} (34... h6 $19 {and Black stays clearly on top.} 35. Qh3 Be6) 35. Qa4 {[%emt 0:01:57]} Bc6 {[%emt 0:02:24]} 36. Qa6 {[%emt 0:00:59]} (36. Qc4+ $15 Kf8 {[#]} 37. Nxe5 $1 {[%mdl 512]}) 36... Qe6 {[%emt 0:03:29]} 37. Ng5 {[%emt 0:02:07]} Qd7 {[%emt 0:00:46]} 38. e4 {[%emt 0:00:57]} g6 $2 {[%emt 0:01:50]} (38... Nd6 $19 39. Bc4+ Kh8) 39. h6 {[%emt 0:00:41]} Nd6 {[%emt 0:01:17]} 40. Qa2+ {[%emt 0:01:24] [#]} Kf8 $1 {[%emt 0:00:58]} 41. Ne6+ {[%emt 0:01:18]} Ke7 {[%emt 0:00:26]} 42. Ng5 {[%emt 0:01:53]} Kf6 {[%emt 0:00:30]} 43. f4 {[%emt 0:01:03]} Nxe4 {[%emt 0:00:48]} 44. Nf3 {[%emt 0:00:54]} exf4 {[%emt 0:01:00]} 45. Qb2+ {[%emt 0:00:29]} Ke7 {[%emt 0:00:28]} 46. Qg7+ {[%emt 0:00:57]} Kd8 {[%emt 0:00:29]} 47. Nd4 {[%emt 0:01:40]} Bd5 {[%emt 0:00:39]} 48. Qh8+ {[%emt 0:00:58]} Qe8 $19 {[%emt 0:00:23]} 49. Qxh7 {[%emt 0:00:51]} Nf6 {[%emt 0:00:30]} 0-1

[Event "Bicaz City Cup 2020"]
[Site "Bicaz"]
[Date "2020.03.08"]
[Round "6.16"]
[White "Toma, Stefan"]
[Black "Dinca, Ovidiu"]
[Result "0-1"]
[ECO "A00"]
[WhiteElo "1508"]
[BlackElo "1854"]
[Annotator "NA"]
[PlyCount "86"]
[EventDate "2020.03.05"]
[EventType "swiss"]
[EventCountry "ROU"]
[SourceTitle "playchess.com"]
[Source "ChessBase"]
[SourceQuality "1"]
[TimeControl "5400+30"]

{[%evp 8,77,-12,-12,10,6,18,24,30,0,-5,6,0,4,25,0,0,0,-3,0,11,-26,2,22,0,-11,0,0,0,-133,-150,-135,-129,32767,32767,-467,-158,32767,-146,-175,-196,-168,-169,32767,32767,32767,32767,-171,-175,-198,-123,-138,-105,-159,-129,-171,-175,-232,-235,-238,-270,-480,-536,32767,32767,-1097,-616,-959,32767,32767,-2273,-2172]} 1. a3 {[%emt 0:01:25]} Nf6 {[%emt 0:00:35]} 2. b4 {[%emt 0:00:06]} e6 {[%emt 0:01:36]} 3. Bb2 {[%emt 0:00:18]} b6 {[%emt 0:00:28]} 4. Nf3 {[%emt 0:00:31]} Bb7 {[%emt 0:00:08]} 5. e3 {[%emt 0:00:21]} d5 {[%emt 0:00:23]} 6. d4 {[%emt 0:00:02] A00: Irregular Openings.} a5 {[%emt 0:01:03]} 7. b5 {[%emt 0:00:08] [#]} Bd6 $146 {[%emt 0:00:42]} ({Predecessor:} 7... Nbd7 8. Nbd2 Bd6 9. c4 O-O 10. Be2 Qe7 11. O-O Ne4 12. cxd5 exd5 13. Rc1 f5 {½-½ (65) Majeric,Z (2337)-Nagy,Z (2246) Budapest 2002}) 8. Nbd2 {[%emt 0:00:21]} O-O {[%emt 0:00:10]} 9. Bd3 {[%emt 0:00:11]} Nbd7 {[%emt 0:00:03]} 10. O-O {[%emt 0:00:15]} Re8 {[%emt 0:00:06]} 11. c4 {[%emt 0:00:25]} e5 {[%emt 0:05:51]} 12. dxe5 {[%emt 0:06:28]} Nxe5 {[%emt 0:00:05]} 13. Be2 {[%emt 0:00:27]} Qe7 {[%emt 0:05:45]} 14. Nd4 {[%emt 0:01:48]} g6 {[%emt 0:01:29]} 15. cxd5 {[%emt 0:03:19]} Bxd5 {[%emt 0:02:26]} 16. N2f3 {[%emt 0:01:02]} Rad8 {[%emt 0:01:22]} 17. Qc1 {[%emt 0:00:20]} Ne4 {[%emt 0:03:12]} 18. Nc6 {[%emt 0:08:59] [#]} (18. a4 $11 {remains equal.}) 18... Bxc6 $1 {[%emt 0:10:50]} 19. bxc6 {[%emt 0:04:17]} Nxf3+ {[%emt 0:02:26]} 20. Bxf3 {[%emt 0:00:52]} Nd2 {[%emt 0:00:12]} 21. Qc3 $4 {[%emt 0:02:08]} (21. Rd1 $17 {was the crucial defense.} Nxf3+ 22. gxf3) 21... Be5 $2 {[%emt 0:00:59]} (21... Nxf3+ $19 {is more deadly.} 22. gxf3 Qg5+ 23. Kh1 Be5 24. Qxe5 Rxe5) 22. Qxe5 {[%emt 0:00:21]} Qxe5 {[%emt 0:01:38]} 23. Bxe5 {[%emt 0:00:02]} Rxe5 {[%emt 0:01:07]} 24. Rfc1 {[%emt 0:01:01]} Nxf3+ {[%emt 0:00:09]} 25. gxf3 {[%emt 0:00:01]} Red5 {[%emt 0:03:16]} 26. Rc2 {[%emt 0:05:31]} Kf8 {[%emt 0:00:16]} 27. Kf1 {[%emt 0:00:23]} Ke7 {[%emt 0:00:30]} 28. Ke2 {[%emt 0:00:15]} R8d6 {[%emt 0:02:44]} ({Black should try} 28... Rh5 $19 29. Rh1 Rdd5) 29. f4 {[%emt 0:01:15]} Rf6 {[%emt 0:07:11]} 30. e4 {[%emt 0:00:37]} Rh5 {[%emt 0:01:28]} 31. Rd1 {[%emt 0:00:22] [#]} Rd6 $1 {[%emt 0:00:28]} ({Resist} 31... Rxf4 32. Ke3 $17) 32. Rxd6 {[%emt 0:01:09]} Kxd6 {[%emt 0:00:12]} 33. Ke3 {[%emt 0:00:33]} Rc5 {[%emt 0:00:28]} 34. Rxc5 $2 {[%emt 0:07:47]} (34. Rd2+ {was necessary.} Kxc6 35. Kd4) 34... Kxc5 {[%emt 0:00:11]} 35. h4 {[%emt 0:00:05]} Kxc6 {[%emt 0:00:09]} 36. f5 {[%emt 0:03:09]} b5 {[%emt 0:02:21]} 37. fxg6 {[%emt 0:00:40]} hxg6 {[%emt 0:00:13]} 38. Kd4 {[%emt 0:01:14]} Kd6 {[%emt 0:00:42]} 39. f4 $19 {[%emt 0:01:33]} c5+ {[%emt 0:00:10]} 40. Kc3 {[%emt 0:00:36]} Ke6 {[%emt 0:00:45]} 41. a4 {[%emt 0:04:44]} b4+ {[%emt 0:00:35]} 42. Kc4 {[%emt 0:00:02]} Kf6 {[%emt 0:00:25]} 43. Kd3 {[%emt 0:00:24]} Kg7 0-1

[Event "Bicaz City Cup 2020"]
[Site "Bicaz"]
[Date "2020.03.08"]
[Round "6.17"]
[White "Saioc, David"]
[Black "Bulgaru, Daniel-Alexandru"]
[Result "1/2-1/2"]
[ECO "D33"]
[WhiteElo "1837"]
[BlackElo "1706"]
[Annotator "NA"]
[PlyCount "102"]
[EventDate "2020.03.05"]
[EventType "swiss"]
[EventCountry "ROU"]
[SourceTitle "playchess.com"]
[Source "ChessBase"]
[SourceQuality "1"]
[TimeControl "5400+30"]

{[%evp 8,101,-11,-13,22,26,29,24,35,29,16,39,40,-9,-1,-18,-3,-16,76,35,45,43,37,42,41,43,40,25,37,6,39,32767,32767,32767,32767,24,57,-8,57,32767,54,60,49,32767,32767,32767,32767,32767,32767,32767,32767,32767,32767,60,52,57,56,53,56,32767,32767,32767,61,61,61,56,32767,32767,63,32767,70,63,32767,63,64,54,69,32767,32767,32767,32767,32767,32767,32767,64,32767,32767,32767,47,32767,56,69,61,56,32767,64]} 1. c4 {[%emt 0:12:34]} Nf6 {[%emt 0:00:00]} 2. Nc3 {[%emt 0:00:12]} e6 {[%emt 0:00:03]} 3. g3 {[%emt 0:00:07]} d5 {[%emt 0:00:09]} 4. d4 {[%emt 0:00:07]} c5 {[%emt 0:08:39]} 5. cxd5 {[%emt 0:03:39]} exd5 {[%emt 0:02:39]} 6. Nf3 {[%emt 0:02:20]} Nc6 {[%emt 0:04:48]} 7. Bg2 {[%emt 0:00:36]} cxd4 {[%emt 0:03:28]} 8. Nxd4 {[%emt 0:00:14]} Bc5 {[%emt 0:03:30]} 9. Nb3 {[%emt 0:00:32]} Bb4 {[%emt 0:02:53] D33: Tarrasch Defence: 6 g3 sidelines.} 10. a3 {[%emt 0:03:00]} Bxc3+ {[%emt 0:00:10]} 11. bxc3 {[%emt 0:00:05] [#]} Ne4 $146 {[%emt 0:04:08]} ({Predecessor:} 11... O-O 12. O-O Be6 13. Bg5 h6 14. Bxf6 Qxf6 15. Bxd5 Bh3 16. Bg2 Bxg2 17. Kxg2 Qxc3 {1-0 (53) Taskin,S-Zavalishin,V (1889) Kstovo 2010}) 12. Bb2 {[%emt 0:08:07]} Na5 {[%emt 0:12:16]} (12... O-O $11 {keeps the balance.}) 13. Bxe4 {[%emt 0:07:32]} Nxb3 {[%emt 0:00:50]} 14. Qxb3 {[%emt 0:00:15]} dxe4 {[%emt 0:00:12]} 15. Qa4+ {[%emt 0:00:11]} Bd7 16. Qxe4+ {[%emt 0:00:16]} Be6 {[%emt 0:04:49]} 17. O-O {[%emt 0:07:04]} O-O {[%emt 0:01:03]} 18. c4 {[%emt 0:02:46]} Qc8 {[%emt 0:00:44]} 19. Rac1 {[%emt 0:01:55]} f6 {[%emt 0:00:53]} 20. Rfd1 {[%emt 0:00:27]} Re8 {[%emt 0:01:08]} 21. f3 {[%emt 0:05:36]} Qc7 {[%emt 0:02:02]} 22. Qc2 {[%emt 0:04:55]} (22. Qd3 $14) 22... Rad8 {[%emt 0:01:06]} (22... b5 $11) 23. c5 {[%emt 0:02:42]} Rxd1+ {[%emt 0:01:08]} 24. Rxd1 {[%emt 0:00:16]} Rd8 {[%emt 0:00:25]} 25. Rxd8+ {[%emt 0:02:36]} Qxd8 {[%emt 0:00:09]} 26. c6 {[%emt 0:01:27]} Qc7 {[%emt 0:00:55]} 27. cxb7 {[%emt 0:00:33]} Qxb7 {[%emt 0:00:12]} 28. Bd4 {[%emt 0:00:27]} a6 {[%emt 0:02:39]} 29. Qa4 {[%emt 0:00:49]} Qb5 {[%emt 0:00:13]} 30. Qxb5 {[%emt 0:00:28]} axb5 31. Kf2 {[%emt 0:00:14]} Kf7 {[%emt 0:00:28]} 32. e4 {[%emt 0:00:07]} Bc4 {[%emt 0:00:18]} 33. Ke3 {[%emt 0:00:08]} Ke6 {[%emt 0:01:03]} 34. f4 {[%emt 0:00:10]} g6 {[%emt 0:00:19]} 35. g4 {[%emt 0:00:46]} f5 {[%emt 0:01:13]} 36. exf5+ {[%emt 0:00:16]} gxf5 {[%emt 0:00:43]} 37. g5 {[%emt 0:00:06]} Kf7 {[%emt 0:00:37]} 38. Bc5 Kg6 {[%emt 0:00:24]} 39. Kd4 {[%emt 0:00:52]} Be2 {[%emt 0:00:30]} 40. Be7 {[%emt 0:00:13]} Bf3 {[%emt 0:00:28]} 41. Ke3 {[%emt 0:01:19]} Bd1 {[%emt 0:00:38]} 42. h4 {[%emt 0:00:21]} Bc2 {[%emt 0:00:30]} 43. Kd4 {[%emt 0:00:09]} Bd1 {[%emt 0:00:22]} 44. Kc5 {[%emt 0:00:08]} Be2 {[%emt 0:00:13]} 45. Bf6 {[%emt 0:00:06]} Bd3 {[%emt 0:00:23]} 46. Kd4 {[%emt 0:00:16]} Bc2 {[%emt 0:00:17]} 47. Ke5 {[%emt 0:00:10]} Bd3 $14 {[%emt 0:00:24]} 48. Bd8 {[%emt 0:00:09]} Bc2 {[%emt 0:00:20]} 49. Ke6 {[%emt 0:00:06]} Bb3+ {[%emt 0:00:25]} 50. Ke7 {[%emt 0:00:06]} Bc4 {[%emt 0:00:14]} 51. Kf8 {[%emt 0:00:07]} Bb3 {[%emt 0:00:23]} 1/2-1/2

[Event "Bicaz City Cup 2020"]
[Site "Bicaz"]
[Date "2020.03.08"]
[Round "6.18"]
[White "Pintilie, Dimitrie"]
[Black "Melinte, Rares-Andrei"]
[Result "0-1"]
[ECO "A16"]
[WhiteElo "1460"]
[BlackElo "1785"]
[Annotator "NA"]
[PlyCount "84"]
[EventDate "2020.03.05"]
[EventType "swiss"]
[EventCountry "ROU"]
[SourceTitle "playchess.com"]
[Source "ChessBase"]
[SourceQuality "1"]
[TimeControl "5400+30"]

1. c4 {[%emt 0:00:05]} Nf6 {[%emt 0:00:03]} 2. Nc3 {[%emt 0:02:03]} g6 {[%emt 0:00:11]} 3. g3 {[%emt 0:01:30]} Bg7 {[%emt 0:00:28]} 4. Bg2 {[%emt 0:01:28]} O-O {[%emt 0:00:55]} 5. Nf3 {[%emt 0:02:30]} d6 {[%emt 0:00:50]} 6. d3 {[%emt 0:01:06]} e5 {[%emt 0:08:33]} 7. Bd2 {[%emt 0:02:19]} Nc6 {[%emt 0:01:57]} 8. Qc1 {[%emt 0:02:46]} Re8 {[%emt 0:16:28]} 9. Bg5 {[%emt 0:05:59]} Qd7 {[%emt 0:09:31]} 10. h4 {[%emt 0:06:28]} Nd4 {[%emt 0:04:08]} 11. Bxf6 {[%emt 0:04:30]} Nxf3+ {[%emt 0:01:02]} 12. Bxf3 {[%emt 0:00:12]} Bxf6 {[%emt 0:00:14]} 13. h5 {[%emt 0:01:43]} Bg7 {[%emt 0:03:00]} 14. hxg6 {[%emt 0:04:59]} hxg6 {[%emt 0:00:55]} 15. Qg5 {[%emt 0:04:15]} Qe7 {[%emt 0:06:29]} 16. Qd2 {[%emt 0:03:18]} c6 {[%emt 0:01:16]} 17. O-O-O {[%emt 0:01:52]} Be6 {[%emt 0:03:01]} 18. e4 {[%emt 0:01:37]} b5 {[%emt 0:01:49]} 19. Be2 {[%emt 0:01:22]} Rec8 {[%emt 0:01:14]} 20. Rh2 {[%emt 0:01:53]} d5 {[%emt 0:02:27]} 21. exd5 {[%emt 0:10:51]} cxd5 {[%emt 0:00:19]} 22. cxd5 {[%emt 0:00:11]} Bxd5 {[%emt 0:00:33]} 23. Kb1 {[%emt 0:00:11]} Be6 {[%emt 0:05:39]} 24. Bf3 {[%emt 0:02:35]} Rab8 {[%emt 0:00:29]} 25. Rdh1 {[%emt 0:03:44]} b4 {[%emt 0:15:54]} 26. Ne4 {[%emt 0:06:44]} b3 {[%emt 0:02:57]} 27. Rh7 {[%emt 0:03:45]} bxa2+ {[%emt 0:01:49]} 28. Ka1 {[%emt 0:00:11]} f5 {[%emt 0:00:47]} 29. Ng5 {[%emt 0:03:28]} e4 {[%emt 0:05:19]} 30. Nxe6 {[%emt 0:10:28]} Bxb2+ {[%emt 0:05:27]} 31. Qxb2 {[%emt 0:00:30]} Qxh7 {[%emt 0:00:21]} 32. Qxb8 {[%emt 0:00:59]} Qxh1+ {[%emt 0:00:07]} 33. Bxh1 {[%emt 0:00:17]} Rxb8 {[%emt 0:00:05]} 34. Kxa2 {[%emt 0:00:34]} exd3 {[%emt 0:00:09]} 35. Bf3 {[%emt 0:07:35]} d2 {[%emt 0:00:59]} 36. Nc5 {[%emt 0:01:37]} Rd8 {[%emt 0:00:54]} 37. Bd1 {[%emt 0:00:10]} Rc8 {[%emt 0:00:30]} 38. Nb3 {[%emt 0:00:12]} Rc1 {[%emt 0:00:21]} 39. Nxd2 {[%emt 0:02:54]} Rxd1 {[%emt 0:00:06]} 40. Nf3 {[%emt 0:00:36]} Rf1 {[%emt 0:00:06]} 41. Nh4 {[%emt 0:00:30]} Rxf2+ {[%emt 0:00:09]} 42. Kb3 {[%emt 0:00:08]} Kg7 {[%emt 0:00:13]} 0-1

[Event "Bicaz City Cup 2020"]
[Site "Bicaz"]
[Date "2020.03.08"]
[Round "6.19"]
[White "Covrig, Larisa-Raluca"]
[Black "Racovita, Gheorghe"]
[Result "1-0"]
[ECO "A45"]
[WhiteElo "1779"]
[BlackElo "1705"]
[Annotator "NA"]
[PlyCount "63"]
[EventDate "2020.03.05"]
[EventType "swiss"]
[EventCountry "ROU"]
[SourceTitle "playchess.com"]
[Source "ChessBase"]
[SourceQuality "1"]
[TimeControl "5400+30"]

1. d4 {[%emt 0:00:00]} Nf6 {[%emt 0:00:00]} 2. Bf4 {[%emt 0:00:00]} d6 {[%emt 0:00:01]} 3. Nc3 {[%emt 0:00:41]} Nbd7 {[%emt 0:00:16]} 4. Nf3 {[%emt 0:00:16]} g6 {[%emt 0:00:29]} 5. e4 {[%emt 0:01:25]} Bg7 {[%emt 0:00:52]} 6. Bc4 {[%emt 0:01:49]} O-O {[%emt 0:00:47]} 7. O-O {[%emt 0:00:19]} c6 {[%emt 0:01:03]} 8. Qe2 {[%emt 0:06:31]} b5 {[%emt 0:04:13]} 9. Bb3 {[%emt 0:04:13]} Nb6 {[%emt 0:06:59]} 10. e5 {[%emt 0:13:03]} Nh5 {[%emt 0:05:48]} 11. Bg5 {[%emt 0:00:24]} d5 {[%emt 0:02:02]} 12. Nd2 {[%emt 0:02:18]} f6 {[%emt 0:08:44]} 13. exf6 {[%emt 0:07:20]} exf6 {[%emt 0:02:32]} 14. Bh4 {[%emt 0:04:31]} Nf4 {[%emt 0:06:08]} 15. Qf3 {[%emt 0:00:52]} Ne6 {[%emt 0:00:28]} 16. Ne2 {[%emt 0:02:25]} Bd7 {[%emt 0:08:49]} 17. c3 {[%emt 0:03:33]} Qc8 {[%emt 0:00:43]} 18. Rfe1 {[%emt 0:04:07]} Ng5 {[%emt 0:02:01]} 19. Bxg5 {[%emt 0:02:50]} fxg5 {[%emt 0:00:02]} 20. Qg3 {[%emt 0:00:58]} Nc4 {[%emt 0:03:01]} 21. Bxc4 {[%emt 0:02:21]} bxc4 {[%emt 0:00:36]} 22. Qxg5 {[%emt 0:00:15]} Qb8 {[%emt 0:01:04]} 23. b4 {[%emt 0:01:59]} a5 {[%emt 0:01:15]} 24. a3 {[%emt 0:01:01]} Rf5 {[%emt 0:01:46]} 25. Qg3 {[%emt 0:01:14]} Qf8 {[%emt 0:06:03]} 26. Nf3 {[%emt 0:02:36]} a4 {[%emt 0:06:05]} 27. Qc7 {[%emt 0:06:28]} Qf7 {[%emt 0:02:09]} 28. Ng3 {[%emt 0:01:10]} Rc8 {[%emt 0:01:10]} 29. Qa7 {[%emt 0:03:41]} Rf4 {[%emt 0:02:20]} 30. Ng5 {[%emt 0:01:03]} Qf6 {[%emt 0:02:15]} 31. Qxd7 {[%emt 0:00:07]} Rd8 {[%emt 0:00:06]} 32. Qe6+ {[%emt 0:00:12] Qf8} 1-0